{"text_format":"3","workbook":"xlsx","n_sheets":3,"sheets":["開始","ギフト予算とトラッカー","データ"],"not_rendered":{"charts":1,"defined_names":1},"read":"whole","date_system":"1900"}

{"sheet":"開始","index":0,"n_rows":7,"n_cols":2,"rows_kept":7}
[null,"このテンプレートについて"]
[null,"このテンプレートは、ギフトの購入履歴を記録し、予算に照らして追跡するために使用します。"]
[null,"家族や友人の名前、ギフト アイテム、予算額と支出額、メモを表に入力し、場面とイベント月を選択します。"]
[null,"月次概要グラフは自動的に更新されます。"]
[null,"注: "]
[null,"追加の説明が、[ギフト予算とトラッカー] ワークシートの列 A に記載されています。このテキストは意図的に非表示になっています。テキストを削除するには、列 A を選択し、[削除] を選択します。テキストを再表示するには、列 A を選択し、フォントの色を変更します。"]
[null,"テーブルの詳細については、テーブル内で Shift キーを押しながら F10 キーを押して、[テーブル] オプション、[代替テキスト] の順に選択します。"]

{"sheet":"ギフト予算とトラッカー","index":1,"n_rows":10,"n_cols":13,"rows_kept":10,"merged":[[0,1,0,4],[0,5,0,12],[1,1,1,2],[2,1,2,12],[3,1,3,3]]}
["このワークシートで個人のギフト予算とトラッカーを作成します。ワークシートのタイトルは右のセルに、ヒントはセル F1 に表示されます。このワークシートの使用方法に関する役立つ説明がこの列のセルに表示されます。","ギフト予算とトラッカー",{"$nulls":3},"毎年の初めに、できるだけ多くの情報を入力します。家族や友人の名前を入力し、ギフトを贈る場面とイベント月を選択して、支出する予定額を入力します。それぞれの人物は、テーブル内に複数回、場面ごとに分けて (誕生日、休日、シャワー パーティなど) 表示できます。"]
["\"月次概要\" ラベルは右のセルに、ヒントはセル D2 に表示されます。","月次概要",null,"前もって計画を立てるために、このグラフを使用して今後数か月間の予定を確認しましょう。購入内容を記録して、予算に照らして追跡します。"]
["右のセルに、予算額の縦棒グラフと支出額の折れ線グラフが重ねて表示されます。","予算額の縦棒グラフと支出額の折れ線グラフがこのセルに重ねて表示されます。"]
["\"ギフト予算とトラッカー\" ラベルが右のセルに表示されます。","ギフト予算とトラッカー"]
["右のセルから始まる \"予算トラッカー\" テーブルに詳細を入力します。","贈り先","場面","月","金額\n予算","金額\n支出","ギフト","ギフトへのリンク","店舗/\nオンライン","購入済み?","ラッピング済み?","配達済み?","メモ"]
[null,"名前 1","誕生日","6 月",{"v":50,"d":"¥50"},{"v":30,"d":"¥30"},"靴","販売者","オンライン","はい","いいえ","いいえ","6/16、映画のチケット"]
[null,"名前 2","記念日","4 月",{"v":20,"d":"¥20"},{"v":20,"d":"¥20"},"ねこ","販売者","店舗","いいえ","いいえ","いいえ","犬が好きとのこと"]
[null,"名前 3","休日","7 月",{"v":50,"d":"¥50"},{"v":70,"d":"¥70"},"ヘッドフォン","販売者","オンライン","いいえ","いいえ","いいえ","寮の持ち物"]
[null,"名前 4","誕生日","1 月",{"v":20,"d":"¥20"},{"v":30,"d":"¥30"},"ゲーム","販売者","店舗","はい","はい","はい"]
[null,"名前 5","結婚式","6 月",{"v":100,"d":"¥100"},{"v":150,"d":"¥150"},"クリスタルの花瓶","販売者","店舗","はい","はい","いいえ"]

{"sheet":"データ","index":2,"n_rows":13,"n_cols":8,"rows_kept":13,"hidden":true}
["場面",null,"日付","日付","予算額\n誕生日","予算額\n休日","予算額\nその他","使用済み金額"]
["誕生日",null,"1 月","1 月",{"$f":"SUMIFS(BudgetTracker[金額\n予算],BudgetTracker[月],\"1 月\",BudgetTracker[場面],\"誕生日\")","v":{"v":20,"d":"¥20"}},{"$f":"SUMIFS(BudgetTracker[金額\n予算],BudgetTracker[月],\"1 月\",BudgetTracker[場面],\"休日\")","v":{"v":0,"d":"¥0"}},{"$f":"SUMIFS(BudgetTracker[金額\n予算],BudgetTracker[月],\"1 月\",BudgetTracker[場面],\"<>休日\",BudgetTracker[場面],\"<>誕生日\")","v":{"v":0,"d":"¥0"}},{"$f":"SUMIFS(BudgetTracker[金額\n支出],BudgetTracker[月],\"1 月\")","v":{"v":30,"d":"¥30"}}]
["休日",null,"2 月","2 月",{"$f":"SUMIFS(BudgetTracker[金額\n予算],BudgetTracker[月],\"2 月\",BudgetTracker[場面],\"誕生日\")","v":{"v":0,"d":"¥0"}},{"$f":"SUMIFS(BudgetTracker[金額\n予算],BudgetTracker[月],\"2 月\",BudgetTracker[場面],\"休日\")","v":{"v":0,"d":"¥0"}},{"$f":"SUMIFS(BudgetTracker[金額\n予算],BudgetTracker[月],\"2 月\",BudgetTracker[場面],\"<>休日\",BudgetTracker[場面],\"<>誕生日\")","v":{"v":0,"d":"¥0"}},{"$f":"SUMIFS(BudgetTracker[金額\n支出],BudgetTracker[月],\"2 月\")","v":{"v":0,"d":"¥0"}}]
["記念日",null,"3 月","3 月",{"$f":"SUMIFS(BudgetTracker[金額\n予算],BudgetTracker[月],\"3 月\",BudgetTracker[場面],\"誕生日\")","v":{"v":0,"d":"¥0"}},{"$f":"SUMIFS(BudgetTracker[金額\n予算],BudgetTracker[月],\"3 月\",BudgetTracker[場面],\"休日\")","v":{"v":0,"d":"¥0"}},{"$f":"SUMIFS(BudgetTracker[金額\n予算],BudgetTracker[月],\"3 月\",BudgetTracker[場面],\"<>休日\",BudgetTracker[場面],\"<>誕生日\")","v":{"v":0,"d":"¥0"}},{"$f":"SUMIFS(BudgetTracker[金額\n支出],BudgetTracker[月],\"3 月\")","v":{"v":0,"d":"¥0"}}]
["結婚式",null,"4 月","4 月",{"$f":"SUMIFS(BudgetTracker[金額\n予算],BudgetTracker[月],\"4 月\",BudgetTracker[場面],\"誕生日\")","v":{"v":0,"d":"¥0"}},{"$f":"SUMIFS(BudgetTracker[金額\n予算],BudgetTracker[月],\"4 月\",BudgetTracker[場面],\"休日\")","v":{"v":0,"d":"¥0"}},{"$f":"SUMIFS(BudgetTracker[金額\n予算],BudgetTracker[月],\"4 月\",BudgetTracker[場面],\"<>休日\",BudgetTracker[場面],\"<>誕生日\")","v":{"v":20,"d":"¥20"}},{"$f":"SUMIFS(BudgetTracker[金額\n支出],BudgetTracker[月],\"4 月\")","v":{"v":20,"d":"¥20"}}]
["ブライダル シャワー",null,"5 月","5 月",{"$f":"SUMIFS(BudgetTracker[金額\n予算],BudgetTracker[月],\"5 月\",BudgetTracker[場面],\"誕生日\")","v":{"v":0,"d":"¥0"}},{"$f":"SUMIFS(BudgetTracker[金額\n予算],BudgetTracker[月],\"5 月\",BudgetTracker[場面],\"休日\")","v":{"v":0,"d":"¥0"}},{"$f":"SUMIFS(BudgetTracker[金額\n予算],BudgetTracker[月],\"5 月\",BudgetTracker[場面],\"<>休日\",BudgetTracker[場面],\"<>誕生日\")","v":{"v":0,"d":"¥0"}},{"$f":"SUMIFS(BudgetTracker[金額\n支出],BudgetTracker[月],\"5 月\")","v":{"v":0,"d":"¥0"}}]
["ベビー シャワー",null,"6 月","6 月",{"$f":"SUMIFS(BudgetTracker[金額\n予算],BudgetTracker[月],\"6 月\",BudgetTracker[場面],\"誕生日\")","v":{"v":50,"d":"¥50"}},{"$f":"SUMIFS(BudgetTracker[金額\n予算],BudgetTracker[月],\"6 月\",BudgetTracker[場面],\"休日\")","v":{"v":0,"d":"¥0"}},{"$f":"SUMIFS(BudgetTracker[金額\n予算],BudgetTracker[月],\"6 月\",BudgetTracker[場面],\"<>休日\",BudgetTracker[場面],\"<>誕生日\")","v":{"v":100,"d":"¥100"}},{"$f":"SUMIFS(BudgetTracker[金額\n支出],BudgetTracker[月],\"6 月\")","v":{"v":180,"d":"¥180"}}]
["卒業",null,"7 月","7 月",{"$f":"SUMIFS(BudgetTracker[金額\n予算],BudgetTracker[月],\"7 月\",BudgetTracker[場面],\"誕生日\")","v":{"v":0,"d":"¥0"}},{"$f":"SUMIFS(BudgetTracker[金額\n予算],BudgetTracker[月],\"7 月\",BudgetTracker[場面],\"休日\")","v":{"v":50,"d":"¥50"}},{"$f":"SUMIFS(BudgetTracker[金額\n予算],BudgetTracker[月],\"7 月\",BudgetTracker[場面],\"<>休日\",BudgetTracker[場面],\"<>誕生日\")","v":{"v":0,"d":"¥0"}},{"$f":"SUMIFS(BudgetTracker[金額\n支出],BudgetTracker[月],\"7 月\")","v":{"v":70,"d":"¥70"}}]
["その他",null,"8 月","8 月",{"$f":"SUMIFS(BudgetTracker[金額\n予算],BudgetTracker[月],\"8 月\",BudgetTracker[場面],\"誕生日\")","v":{"v":0,"d":"¥0"}},{"$f":"SUMIFS(BudgetTracker[金額\n予算],BudgetTracker[月],\"8 月\",BudgetTracker[場面],\"休日\")","v":{"v":0,"d":"¥0"}},{"$f":"SUMIFS(BudgetTracker[金額\n予算],BudgetTracker[月],\"8 月\",BudgetTracker[場面],\"<>休日\",BudgetTracker[場面],\"<>誕生日\")","v":{"v":0,"d":"¥0"}},{"$f":"SUMIFS(BudgetTracker[金額\n支出],BudgetTracker[月],\"8 月\")","v":{"v":0,"d":"¥0"}}]
[null,null,"9 月","9 月",{"$f":"SUMIFS(BudgetTracker[金額\n予算],BudgetTracker[月],\"9 月\",BudgetTracker[場面],\"誕生日\")","v":{"v":0,"d":"¥0"}},{"$f":"SUMIFS(BudgetTracker[金額\n予算],BudgetTracker[月],\"9 月\",BudgetTracker[場面],\"休日\")","v":{"v":0,"d":"¥0"}},{"$f":"SUMIFS(BudgetTracker[金額\n予算],BudgetTracker[月],\"9 月\",BudgetTracker[場面],\"<>休日\",BudgetTracker[場面],\"<>誕生日\")","v":{"v":0,"d":"¥0"}},{"$f":"SUMIFS(BudgetTracker[金額\n支出],BudgetTracker[月],\"9 月\")","v":{"v":0,"d":"¥0"}}]
[null,null,"10 月","10 月",{"$f":"SUMIFS(BudgetTracker[金額\n予算],BudgetTracker[月],\"10 月\",BudgetTracker[場面],\"誕生日\")","v":{"v":0,"d":"¥0"}},{"$f":"SUMIFS(BudgetTracker[金額\n予算],BudgetTracker[月],\"10 月\",BudgetTracker[場面],\"休日\")","v":{"v":0,"d":"¥0"}},{"$f":"SUMIFS(BudgetTracker[金額\n予算],BudgetTracker[月],\"10 月\",BudgetTracker[場面],\"<>休日\",BudgetTracker[場面],\"<>誕生日\")","v":{"v":0,"d":"¥0"}},{"$f":"SUMIFS(BudgetTracker[金額\n支出],BudgetTracker[月],\"10 月\")","v":{"v":0,"d":"¥0"}}]
[null,null,"11 月","11 月",{"$f":"SUMIFS(BudgetTracker[金額\n予算],BudgetTracker[月],\"11 月\",BudgetTracker[場面],\"誕生日\")","v":{"v":0,"d":"¥0"}},{"$f":"SUMIFS(BudgetTracker[金額\n予算],BudgetTracker[月],\"11 月\",BudgetTracker[場面],\"休日\")","v":{"v":0,"d":"¥0"}},{"$f":"SUMIFS(BudgetTracker[金額\n予算],BudgetTracker[月],\"11 月\",BudgetTracker[場面],\"<>休日\",BudgetTracker[場面],\"<>誕生日\")","v":{"v":0,"d":"¥0"}},{"$f":"SUMIFS(BudgetTracker[金額\n支出],BudgetTracker[月],\"11 月\")","v":{"v":0,"d":"¥0"}}]
[null,null,"12 月","12 月",{"$f":"SUMIFS(BudgetTracker[金額\n予算],BudgetTracker[月],\"12 月\",BudgetTracker[場面],\"誕生日\")","v":{"v":0,"d":"¥0"}},{"$f":"SUMIFS(BudgetTracker[金額\n予算],BudgetTracker[月],\"12 月\",BudgetTracker[場面],\"休日\")","v":{"v":0,"d":"¥0"}},{"$f":"SUMIFS(BudgetTracker[金額\n予算],BudgetTracker[月],\"12 月\",BudgetTracker[場面],\"<>休日\",BudgetTracker[場面],\"<>誕生日\")","v":{"v":0,"d":"¥0"}},{"$f":"SUMIFS(BudgetTracker[金額\n支出],BudgetTracker[月],\"12 月\")","v":{"v":0,"d":"¥0"}}]